{"text_format":"3","workbook":"xlsx","n_sheets":3,"sheets":["Início","Orçamento Mensal da Faculdade","chart_calcs"],"not_rendered":{"charts":4,"defined_names":19},"read":"whole","date_system":"1900"}

{"sheet":"Início","index":0,"n_rows":7,"n_cols":2,"rows_kept":7}
[null,"SOBRE ESTE MODELO"]
[null,"Use a planilha Orçamento Mensal de Faculdade para controlar as receitas, despesas e o fluxo de caixa."]
[null,"Insira as receitas e as despesas mensais para calcular o Total de receitas e despesas."]
[null,"O fluxo de caixa é calculado automaticamente e o gráfico de fluxo de caixa é atualizado para você."]
[null,"Selecione o controle deslizante para obter os gráficos de receitas, despesas e fluxo de caixa para um mês e ano."]
[null,"Observação: "]
[null,"Há instruções adicionais na coluna A da planilha. Este texto está oculto de propósito. Para removê-lo, selecione a coluna A e selecione Excluir. Para reexibir o texto, selecione a coluna A e altere a cor da fonte."]

{"sheet":"Orçamento Mensal da Faculdade","index":1,"n_rows":72,"n_cols":16,"rows_kept":72,"merged":[[5,1,14,3],[5,4,14,11],[5,12,13,15],[15,1,19,15],[20,1,21,15]]}
["Crie um orçamento mensal da faculdade nesta pasta de trabalho. O título desta planilha está na célula à direita e na célula B1. Instruções úteis sobre como usar esta planilha estão nas células desta coluna. A próxima instrução está na célula A4.","Orçamento Mensal da Faculdade"]
[]
[]
["O rótulo de receitas está na célula à direita, o rótulo de despesas na célula E4 e o rótulo de fluxo de caixa na célula M4.",{"$f":"chart_calcs!$D$6","v":"renda de january:"},null,null,{"$f":"chart_calcs!$D$7","v":"despesas de january:"},{"$nulls":7},{"$f":"chart_calcs!$D$8","v":"fluxo de caixa de january:"}]
["As receitas são atualizadas automaticamente na célula à direita, as despesas na célula E5 e o fluxo de caixa na célula M5.",{"$f":"\" \"&chart_calcs!$F$6","v":" R$ 1225."},null,null,{"$f":"\" \"&chart_calcs!$F$7","v":" R$ 1056."},{"$nulls":7},{"$f":"\" \"&chart_calcs!$F$8","v":" R$ 169"}]
["O gráfico de rosca mostrando o resumo das receitas na célula à direita, o resumo das despesas na célula E6 e o gráfico de barras mostrando o fluxo de caixa positivo e negativo na célula M6 são atualizado automaticamente. A próxima instrução está na célula A17.","Nesta célula está o gráfico de rosca mostrando o resumo de receitas do mês ou ano selecionado.",null,null,"Nesta célula está o gráfico de rosca mostrando o resumo de despesas do mês ou ano selecionado.",{"$nulls":7},"Nesta célula está o gráfico de linhas mostrando o fluxo de caixa positivo ou negativo do mês ou ano selecionado."]
{"$rows_empty":9}
[null,"Nesta célula está o gráfico de linhas mostrando o fluxo de caixa do mês ou ano selecionado."]
["O gráfico de linhas de fluxo de caixa está na célula à direita. A próxima instrução está na célula A21."]
[]
[]
[]
["Selecione o controle deslizante à direita para acessar os dados e gráficos mensais ou anuais de receitas, despesas e fluxo de caixa. A próxima instrução está na célula A25.","O controle deslizante está nesta célula."]
[]
[]
[]
["Selecione mês na célula à direita. Pressione Alt+Seta para baixo para ver as opções e depois Seta para baixo e Enter para selecionar.","JAN"]
["O período selecionado é atualizado automaticamente na célula P26.",{"$nulls":14},{"$f":"SelectedPeriod","v":"JAN "}]
["Os rótulos estão nessa linha, o rótulo caixa mensal depois das despesas está na célula à direita, os meses estão nas células C27 a N27, o ano está na célula O27 e a porcentagem de aumento na célula P27.","Caixa mensal depois das despesas",{"$f":"FirstMonth","v":"JAN "},{"$f":"NextMonth","v":"FEB "},"MAR ","APR ","MAY ","JUN ","JUL ","AUG ","SEP ","OCT ","NOV ","DEC ","ANO  ","% REC "]
["O rótulo fluxo de caixa está na célula à direita. O fluxo de caixa de cada mês é calculado automaticamente nas células C28 a N28, o valor anual na célula O28 e o aumento percentual na célula P28. O Minigráfico é atualizado automaticamente na célula Q28.","Fluxo de caixa",{"$f":"C37-C72","v":169},69,192,199,204,{"v":-771,"d":"-771 "},124,154,{"v":-721,"d":"-721 "},109,34,{"v":-61,"d":"-61 "},{"$f":"SUM(C28:N28)","v":{"v":-299,"d":"-299 "}},{"$f":"INDEX($C28:$O28,,SelectedPeriodColumn)/INDEX($C$37:$O$37,,SelectedPeriodColumn)","v":{"v":0.13795918367346938,"d":"13.8%"}}]
["O rótulo fluxo de caixa acumulado está na célula à direita. O fluxo de caixa acumulado de cada mês é calculado automaticamente nas células C29 a N29, o valor anual na célula O29 e o aumento percentual na célula P29. O Minigráfico é atualizado automaticamente na célula Q29. A próxima instrução está na célula A31.","Fluxo de caixa acumulado",{"$f":"SUM($C$28:C$28)","v":169},{"$f":"SUM($C$28:D$28)","v":238},{"$f":"SUM($C$28:E$28)","v":430},{"$f":"SUM($C$28:F$28)","v":629},{"$f":"SUM($C$28:G$28)","v":833},{"$f":"SUM($C$28:H$28)","v":62},{"$f":"SUM($C$28:I$28)","v":186},{"$f":"SUM($C$28:J$28)","v":340},{"$f":"SUM($C$28:K$28)","v":{"v":-381,"d":"-381 "}},{"$f":"SUM($C$28:L$28)","v":{"v":-272,"d":"-272 "}},{"$f":"SUM($C$28:M$28)","v":{"v":-238,"d":"-238 "}},{"$f":"SUM($C$28:N$28)","v":{"v":-299,"d":"-299 "}}]
[]
["O rótulo receitas mensais está na célula à direita, os meses nas células C31 a N31, o ano na célula O31 e o rótulo aumento percentual na célula P31. Insira os itens de receitas mensais nas células B32 a B36 e os valores mensais nas células C32 a N36. A receita anual é calculada automaticamente nas células O32 a O36 e o aumento percentual nas células P32 a P36. A próxima instrução está na célula A37.","RECEITAS MENSAIS",{"$f":"FirstMonth","v":"JAN "},{"$f":"NextMonth","v":"FEB "},"MAR ","APR ","MAY ","JUN ","JUL ","AUG ","SEP ","OCT ","NOV ","DEC ","ANO  ","% REC "]
[null,"Assistência financeira (concessões, bolsas de estudo, empréstimos) recebida",0,0,750,750,750,750,750,750,750,750,750,750,{"$f":"SUM(C32:N32)","v":{"v":7500,"d":"7,500"}},{"$f":"INDEX($C32:$O32,,SelectedPeriodColumn)/INDEX($C$37:$O$37,,SelectedPeriodColumn)","v":{"v":0,"d":"0.0%"}}]
[null,"Salários após impostos de um emprego",450,450,450,450,450,450,450,450,550,350,350,350,{"v":5200,"d":"5,200"},{"$f":"INDEX($C33:$O33,,SelectedPeriodColumn)/INDEX($C$37:$O$37,,SelectedPeriodColumn)","v":{"v":0.3673469387755102,"d":"36.7%"}}]
[null,"Ajuda financeira da família",200,200,{"v":1000,"d":"1,000"},350,350,350,350,350,350,350,350,350,{"v":4550,"d":"4,550"},{"$f":"INDEX($C34:$O34,,SelectedPeriodColumn)/INDEX($C$37:$O$37,,SelectedPeriodColumn)","v":{"v":0.16326530612244897,"d":"16.3%"}}]
[null,"Retiradas da poupança",500,350,150,0,0,0,0,0,0,0,0,0,{"v":1000,"d":"1,000"},{"$f":"INDEX($C35:$O35,,SelectedPeriodColumn)/INDEX($C$37:$O$37,,SelectedPeriodColumn)","v":{"v":0.40816326530612246,"d":"40.8%"}}]
[null,"Outros (pensão para filhos, assistência pública, presentes, etc.)",75,75,75,75,75,75,75,75,75,75,75,75,900,{"$f":"INDEX($C36:$O36,,SelectedPeriodColumn)/INDEX($C$37:$O$37,,SelectedPeriodColumn)","v":{"v":0.061224489795918366,"d":"6.1%"}}]
["O rótulo receita total está na célula à direita. A receita total de cada mês é calculada automaticamente nas células C37 a N37, a receita anual na célula O37 e o aumento percentual na célula P37. O Minigráfico é atualizado automaticamente na célula Q37. A próxima instrução está na célula A39.","TOTAL DE RECEITAS",{"$f":"SUM(C32:C36)","v":{"v":1225,"d":"1,225"}},{"v":1075,"d":"1,075"},{"v":2425,"d":"2,425"},{"v":1625,"d":"1,625"},{"v":1625,"d":"1,625"},{"v":1625,"d":"1,625"},{"v":1625,"d":"1,625"},{"v":1625,"d":"1,625"},{"v":1725,"d":"1,725"},{"v":1525,"d":"1,525"},{"v":1525,"d":"1,525"},{"v":1525,"d":"1,525"},{"v":19150,"d":"19,150"},{"$f":"INDEX($C37:$O37,,SelectedPeriodColumn)/INDEX($C$37:$O$37,,SelectedPeriodColumn)","v":{"v":1,"d":"100.0%"}}]
[]
["O rótulo despesas mensais está na célula à direita, os meses nas células C39 a N39, o ano na célula O39 e o rótulo aumento percentual na célula P39.","DESPESAS MENSAIS",{"$f":"FirstMonth","v":"JAN "},{"$f":"NextMonth","v":"FEB "},"MAR ","APR ","MAY ","JUN ","JUL ","AUG ","SEP ","OCT ","NOV ","DEC ","ANO  ","% REC "]
["Insira ou modifique o item de despesa na célula à direita e os valores mensais nas células C40 a N43. O valor anual é calculado automaticamente nas células O40 a O43 e o aumento percentual nas células P40 a P43. O Minigráfico é atualizado automaticamente na célula Q40. A próxima instrução está na célula A45.","Alojamento e refeições",{"$f":"SUM(C41:C43)","v":565},565,565,565,565,565,565,565,565,565,565,565,{"$f":"SUM(C40:N40)","v":{"v":6780,"d":"6,780"}},{"$f":"INDEX($C40:$O40,,SelectedPeriodColumn)/INDEX($C$72:$O$72,,SelectedPeriodColumn)","v":{"v":0.5350378787878788,"d":"53.5%"}}]
[null,null,315,315,315,315,315,315,315,315,315,315,315,315,{"$f":"SUM(C41:N41)","v":{"v":3780,"d":"3,780"}},{"$f":"INDEX($C41:$O41,,SelectedPeriodColumn)/INDEX($C$72:$O$72,,SelectedPeriodColumn)","v":{"v":0.29829545454545453,"d":"29.8%"}}]
[null,null,200,200,200,200,200,200,200,200,200,200,200,200,{"$f":"SUM(C42:N42)","v":{"v":2400,"d":"2,400"}},{"$f":"INDEX($C42:$O42,,SelectedPeriodColumn)/INDEX($C$72:$O$72,,SelectedPeriodColumn)","v":{"v":0.1893939393939394,"d":"18.9%"}}]
[null,null,50,50,50,50,50,50,50,50,50,50,50,50,{"$f":"SUM(C43:N43)","v":600},{"$f":"INDEX($C43:$O43,,SelectedPeriodColumn)/INDEX($C$72:$O$72,,SelectedPeriodColumn)","v":{"v":0.04734848484848485,"d":"4.7%"}}]
[]
["Insira ou modifique o item de despesa na célula à direita e os valores mensais nas células C45 a N47. O valor anual é calculado automaticamente nas células O45 a O47 e o aumento percentual nas células P45 a P47. O Minigráfico é atualizado automaticamente na célula Q45. A próxima instrução está na célula A49.","Mensalidade e taxas",{"$f":"SUM(C46:C47)","v":0},0,750,0,0,650,0,0,650,0,0,0,{"$f":"SUM(C45:N45)","v":{"v":2050,"d":"2,050"}},{"$f":"INDEX($C45:$O45,,SelectedPeriodColumn)/INDEX($C$72:$O$72,,SelectedPeriodColumn)","v":{"v":0,"d":"0.0%"}}]
[null,null,0,0,500,0,0,500,0,0,500,0,0,0,{"$f":"SUM(C46:N46)","v":{"v":1500,"d":"1,500"}},{"$f":"INDEX($C46:$O46,,SelectedPeriodColumn)/INDEX($C$72:$O$72,,SelectedPeriodColumn)","v":{"v":0,"d":"0.0%"}}]
[null,null,0,0,250,0,0,150,0,0,150,0,0,0,{"$f":"SUM(C47:N47)","v":550},{"$f":"INDEX($C47:$O47,,SelectedPeriodColumn)/INDEX($C$72:$O$72,,SelectedPeriodColumn)","v":{"v":0,"d":"0.0%"}}]
[]
["Insira ou modifique o item de despesa na célula à direita e os valores mensais nas células C49 a N51. O valor anual é calculado automaticamente nas células O49 a O51 e o aumento percentual nas células P49 a P51. O Minigráfico é atualizado automaticamente na célula Q49. A próxima instrução está na célula A53.","Livros e materiais",{"$f":"SUM(C50:C51)","v":0},0,325,20,20,325,10,10,400,15,15,15,{"$f":"SUM(C49:N49)","v":{"v":1155,"d":"1,155"}},{"$f":"INDEX($C49:$O49,,SelectedPeriodColumn)/INDEX($C$72:$O$72,,SelectedPeriodColumn)","v":{"v":0,"d":"0.0%"}}]
[null,null,0,0,225,0,0,275,0,0,325,0,0,0,{"$f":"SUM(C50:N50)","v":825},{"$f":"INDEX($C50:$O50,,SelectedPeriodColumn)/INDEX($C$72:$O$72,,SelectedPeriodColumn)","v":{"v":0,"d":"0.0%"}}]
[null,null,0,0,100,20,20,50,10,10,75,15,15,15,{"$f":"SUM(C51:N51)","v":330},{"$f":"INDEX($C51:$O51,,SelectedPeriodColumn)/INDEX($C$72:$O$72,,SelectedPeriodColumn)","v":{"v":0,"d":"0.0%"}}]
[]
["Insira ou modifique o item de despesa na célula à direita e os valores mensais nas células C53 a N57. O valor anual é calculado automaticamente nas células O53 a O57 e o aumento percentual nas células P53 a P57. O Minigráfico é atualizado automaticamente na célula Q53. A próxima instrução está na célula A59.","Transporte",{"$f":"SUM(C54:C57)","v":224},174,174,219,174,174,274,219,174,174,224,269,{"$f":"SUM(C53:N53)","v":{"v":2473,"d":"2,473"}},{"$f":"INDEX($C53:$O53,,SelectedPeriodColumn)/INDEX($C$72:$O$72,,SelectedPeriodColumn)","v":{"v":0.21212121212121213,"d":"21.2%"}}]
[null,null,30,30,30,75,30,30,30,75,30,30,30,75,{"$f":"SUM(C54:N54)","v":495},{"$f":"INDEX($C54:$O54,,SelectedPeriodColumn)/INDEX($C$72:$O$72,,SelectedPeriodColumn)","v":{"v":0.028409090909090908,"d":"2.8%"}}]
[null,null,129,129,129,129,129,129,129,129,129,129,129,129,{"$f":"SUM(C55:N55)","v":{"v":1548,"d":"1,548"}},{"$f":"INDEX($C55:$O55,,SelectedPeriodColumn)/INDEX($C$72:$O$72,,SelectedPeriodColumn)","v":{"v":0.12215909090909091,"d":"12.2%"}}]
[null,null,15,15,15,15,15,15,15,15,15,15,15,15,{"$f":"SUM(C56:N56)","v":180},{"$f":"INDEX($C56:$O56,,SelectedPeriodColumn)/INDEX($C$72:$O$72,,SelectedPeriodColumn)","v":{"v":0.014204545454545454,"d":"1.4%"}}]
[null,null,50,0,0,0,0,0,100,0,0,0,50,50,{"$f":"SUM(C57:N57)","v":250},{"$f":"INDEX($C57:$O57,,SelectedPeriodColumn)/INDEX($C$72:$O$72,,SelectedPeriodColumn)","v":{"v":0.04734848484848485,"d":"4.7%"}}]
[]
["Insira ou modifique o item de despesa na célula à direita e os valores mensais nas células C59 a N65. O valor anual é calculado automaticamente nas células O59 a O65 e o aumento percentual nas células P59 a P65. O Minigráfico é atualizado automaticamente na célula Q59. A próxima instrução está na célula A67.","Discricionário",{"$f":"SUM(C60:C65)","v":69},69,169,369,419,444,419,419,394,394,419,469,{"$f":"SUM(C59:N59)","v":{"v":4053,"d":"4,053"}},{"$f":"INDEX($C59:$O59,,SelectedPeriodColumn)/INDEX($C$72:$O$72,,SelectedPeriodColumn)","v":{"v":0.06534090909090909,"d":"6.5%"}}]
[null,null,0,0,0,50,100,100,100,100,75,75,100,100,800,{"$f":"INDEX($C60:$O60,,SelectedPeriodColumn)/INDEX($C$72:$O$72,,SelectedPeriodColumn)","v":{"v":0,"d":"0.0%"}}]
[null,null,69,69,69,69,69,69,69,69,69,69,69,69,828,{"$f":"INDEX($C61:$O61,,SelectedPeriodColumn)/INDEX($C$72:$O$72,,SelectedPeriodColumn)","v":{"v":0.06534090909090909,"d":"6.5%"}}]
[null,null,0,0,0,0,0,25,0,0,0,0,0,50,75,{"$f":"INDEX($C62:$O62,,SelectedPeriodColumn)/INDEX($C$72:$O$72,,SelectedPeriodColumn)","v":{"v":0,"d":"0.0%"}}]
[null,null,0,0,100,100,100,100,100,100,100,100,100,100,{"v":1000,"d":"1,000"},{"$f":"INDEX($C63:$O63,,SelectedPeriodColumn)/INDEX($C$72:$O$72,,SelectedPeriodColumn)","v":{"v":0,"d":"0.0%"}}]
[null,null,0,0,0,50,50,50,50,50,50,50,50,50,450,{"$f":"INDEX($C64:$O64,,SelectedPeriodColumn)/INDEX($C$72:$O$72,,SelectedPeriodColumn)","v":{"v":0,"d":"0.0%"}}]
[null,null,0,0,0,100,100,100,100,100,100,100,100,100,900,{"$f":"INDEX($C65:$O65,,SelectedPeriodColumn)/INDEX($C$72:$O$72,,SelectedPeriodColumn)","v":{"v":0,"d":"0.0%"}}]
[]
["Insira ou modifique o item de despesa na célula à direita e os valores mensais nas células C67 a N70. O valor anual é calculado automaticamente nas células O67 a O70 e o aumento percentual nas células P67 a P70. O Minigráfico é atualizado automaticamente na célula Q67. A próxima instrução está na célula A72.","Outras despesas",{"$f":"SUM(C68:C70)","v":198},{"$f":"SUM(D68:D70)","v":198},250,253,243,238,233,258,263,268,268,268,{"$f":"SUM(C67:N67)","v":{"v":2938,"d":"2,938"}},{"$f":"INDEX($C67:$O67,,SelectedPeriodColumn)/INDEX($C$72:$O$72,,SelectedPeriodColumn)","v":{"v":0.1875,"d":"18.8%"}}]
[null,null,123,123,123,123,123,123,123,123,123,123,123,123,{"$f":"SUM(C68:N68)","v":{"v":1476,"d":"1,476"}},{"$f":"INDEX($C68:$O68,,SelectedPeriodColumn)/INDEX($C$72:$O$72,,SelectedPeriodColumn)","v":{"v":0.11647727272727272,"d":"11.6%"}}]
[null,null,0,0,52,55,45,40,35,60,65,70,70,70,{"$f":"SUM(C69:N69)","v":562},{"$f":"INDEX($C69:$O69,,SelectedPeriodColumn)/INDEX($C$72:$O$72,,SelectedPeriodColumn)","v":{"v":0,"d":"0.0%"}}]
[null,null,75,75,75,75,75,75,75,75,75,75,75,75,{"$f":"SUM(C70:N70)","v":900},{"$f":"INDEX($C70:$O70,,SelectedPeriodColumn)/INDEX($C$72:$O$72,,SelectedPeriodColumn)","v":{"v":0.07102272727272728,"d":"7.1%"}}]
[]
["O rótulo despesas totais está na célula à direita. O despesas totais para cada mês é calculado automaticamente nas células C72 a N72, as despesas anuais na célula O72 e o aumento percentual na célula P72. O Minigráfico é atualizado automaticamente na célula Q72.","DESPESAS TOTAIS",{"$f":"SUM(C40,C45,C49,C53,C59,C67)","v":{"v":1056,"d":"1,056"}},{"v":1006,"d":"1,006"},{"v":2233,"d":"2,233"},{"v":1426,"d":"1,426"},{"v":1421,"d":"1,421"},{"v":2396,"d":"2,396"},{"v":1501,"d":"1,501"},{"v":1471,"d":"1,471"},{"v":2446,"d":"2,446"},{"v":1416,"d":"1,416"},{"v":1491,"d":"1,491"},{"v":1586,"d":"1,586"},{"$f":"SUM(C72:N72)","v":{"v":19449,"d":"19,449"}},{"$f":"INDEX($C72:$O72,,SelectedPeriodColumn)/INDEX($C$72:$O$72,,SelectedPeriodColumn)","v":{"v":1,"d":"100.0%"}}]

{"sheet":"chart_calcs","index":2,"n_rows":23,"n_cols":16,"rows_kept":23,"hidden":true}
["***Esta planilha deve permanecer OCULTA***"]
[]
[{"$nulls":3},{"$f":"IFERROR(LOWER(TEXT(VALUE(SelectedPeriod&\" 1\"),\"mmmm\")),\"ano\")","v":"january"}]
[]
[{"$nulls":3},"Títulos de gráfico dinâmico"]
[{"$nulls":3},{"$f":"\"renda de \"&D3&\":\"","v":"renda de january:"},null,{"$f":"TEXT(INDEX('Orçamento Mensal da Faculdade'!$C$37:$O$37,,SelectedPeriodColumn),\"R$ #.###\")","v":"R$ 1225."}]
[{"$nulls":3},{"$f":"\"despesas de \"&D3&\":\"","v":"despesas de january:"},null,{"$f":"TEXT(INDEX('Orçamento Mensal da Faculdade'!$C$72:$O$72,,SelectedPeriodColumn),\"R$ #.###\")","v":"R$ 1056."}]
[{"$nulls":3},{"$f":"\"fluxo de caixa de \"&D3&\":\"","v":"fluxo de caixa de january:"},{"$f":"INDEX('Orçamento Mensal da Faculdade'!C28:O28,ScrollBarValue)","v":169},{"$f":"TEXT(E8,\"R$ #.###\")","v":"R$ 169"}]
[]
[]
[]
[{"$nulls":3},{"$f":"LOWER('Orçamento Mensal da Faculdade'!C27)","v":"jan "},{"$f":"LOWER('Orçamento Mensal da Faculdade'!D27)","v":"feb "},{"$f":"LOWER('Orçamento Mensal da Faculdade'!E27)","v":"mar "},{"$f":"LOWER('Orçamento Mensal da Faculdade'!F27)","v":"apr "},{"$f":"LOWER('Orçamento Mensal da Faculdade'!G27)","v":"may "},{"$f":"LOWER('Orçamento Mensal da Faculdade'!H27)","v":"jun "},{"$f":"LOWER('Orçamento Mensal da Faculdade'!I27)","v":"jul "},{"$f":"LOWER('Orçamento Mensal da Faculdade'!J27)","v":"aug "},{"$f":"LOWER('Orçamento Mensal da Faculdade'!K27)","v":"sep "},{"$f":"LOWER('Orçamento Mensal da Faculdade'!L27)","v":"oct "},{"$f":"LOWER('Orçamento Mensal da Faculdade'!M27)","v":"nov "},{"$f":"LOWER('Orçamento Mensal da Faculdade'!N27)","v":"dec "},{"$f":"LOWER('Orçamento Mensal da Faculdade'!O27)","v":"ano  "}]
[null,null,"Valor da barra de rolagem: ",1]
[null,null,"Gráfico de fluxo de caixa: ",{"$f":"IF(SelectedPeriod='Orçamento Mensal da Faculdade'!C$31,IF('Orçamento Mensal da Faculdade'!$C$28:$O$28>=0,'Orçamento Mensal da Faculdade'!$C$28:$O$28,NA()),NA())","v":69},{"$f":"IF(SelectedPeriod='Orçamento Mensal da Faculdade'!D$31,IF('Orçamento Mensal da Faculdade'!$C$28:$O$28>=0,'Orçamento Mensal da Faculdade'!$C$28:$O$28,NA()),NA())","v":{"$error":"#N/A"}},{"$f":"IF(SelectedPeriod='Orçamento Mensal da Faculdade'!E$31,IF('Orçamento Mensal da Faculdade'!$C$28:$O$28>=0,'Orçamento Mensal da Faculdade'!$C$28:$O$28,NA()),NA())","v":{"$error":"#N/A"}},{"$f":"IF(SelectedPeriod='Orçamento Mensal da Faculdade'!F$31,IF('Orçamento Mensal da Faculdade'!$C$28:$O$28>=0,'Orçamento Mensal da Faculdade'!$C$28:$O$28,NA()),NA())","v":{"$error":"#N/A"}},{"$f":"IF(SelectedPeriod='Orçamento Mensal da Faculdade'!G$31,IF('Orçamento Mensal da Faculdade'!$C$28:$O$28>=0,'Orçamento Mensal da Faculdade'!$C$28:$O$28,NA()),NA())","v":{"$error":"#N/A"}},{"$f":"IF(SelectedPeriod='Orçamento Mensal da Faculdade'!H$31,IF('Orçamento Mensal da Faculdade'!$C$28:$O$28>=0,'Orçamento Mensal da Faculdade'!$C$28:$O$28,NA()),NA())","v":{"$error":"#N/A"}},{"$f":"IF(SelectedPeriod='Orçamento Mensal da Faculdade'!I$31,IF('Orçamento Mensal da Faculdade'!$C$28:$O$28>=0,'Orçamento Mensal da Faculdade'!$C$28:$O$28,NA()),NA())","v":{"$error":"#N/A"}},{"$f":"IF(SelectedPeriod='Orçamento Mensal da Faculdade'!J$31,IF('Orçamento Mensal da Faculdade'!$C$28:$O$28>=0,'Orçamento Mensal da Faculdade'!$C$28:$O$28,NA()),NA())","v":{"$error":"#N/A"}},{"$f":"IF(SelectedPeriod='Orçamento Mensal da Faculdade'!K$31,IF('Orçamento Mensal da Faculdade'!$C$28:$O$28>=0,'Orçamento Mensal da Faculdade'!$C$28:$O$28,NA()),NA())","v":{"$error":"#N/A"}},{"$f":"IF(SelectedPeriod='Orçamento Mensal da Faculdade'!L$31,IF('Orçamento Mensal da Faculdade'!$C$28:$O$28>=0,'Orçamento Mensal da Faculdade'!$C$28:$O$28,NA()),NA())","v":{"$error":"#N/A"}},{"$f":"IF(SelectedPeriod='Orçamento Mensal da Faculdade'!M$31,IF('Orçamento Mensal da Faculdade'!$C$28:$O$28>=0,'Orçamento Mensal da Faculdade'!$C$28:$O$28,NA()),NA())","v":{"$error":"#N/A"}},{"$f":"IF(SelectedPeriod='Orçamento Mensal da Faculdade'!N$31,IF('Orçamento Mensal da Faculdade'!$C$28:$O$28>=0,'Orçamento Mensal da Faculdade'!$C$28:$O$28,NA()),NA())","v":{"$error":"#N/A"}},{"$f":"IF(SelectedPeriod='Orçamento Mensal da Faculdade'!O$31,IF('Orçamento Mensal da Faculdade'!$C$28:$O$28>=0,'Orçamento Mensal da Faculdade'!$C$28:$O$28,NA()),NA())","v":{"$error":"#N/A"}}]
[null,null,"Acumulado: ",{"$f":"IF(SelectedPeriod='Orçamento Mensal da Faculdade'!C$31,IF('Orçamento Mensal da Faculdade'!$C$28:$O$28<0,'Orçamento Mensal da Faculdade'!$C$28:$O$28,NA()),NA())","v":{"$error":"#N/A"}},{"$f":"IF(SelectedPeriod='Orçamento Mensal da Faculdade'!D$31,IF('Orçamento Mensal da Faculdade'!$C$28:$O$28<0,'Orçamento Mensal da Faculdade'!$C$28:$O$28,NA()),NA())","v":{"$error":"#N/A"}},{"$f":"IF(SelectedPeriod='Orçamento Mensal da Faculdade'!E$31,IF('Orçamento Mensal da Faculdade'!$C$28:$O$28<0,'Orçamento Mensal da Faculdade'!$C$28:$O$28,NA()),NA())","v":{"$error":"#N/A"}},{"$f":"IF(SelectedPeriod='Orçamento Mensal da Faculdade'!F$31,IF('Orçamento Mensal da Faculdade'!$C$28:$O$28<0,'Orçamento Mensal da Faculdade'!$C$28:$O$28,NA()),NA())","v":{"$error":"#N/A"}},{"$f":"IF(SelectedPeriod='Orçamento Mensal da Faculdade'!G$31,IF('Orçamento Mensal da Faculdade'!$C$28:$O$28<0,'Orçamento Mensal da Faculdade'!$C$28:$O$28,NA()),NA())","v":{"$error":"#N/A"}},{"$f":"IF(SelectedPeriod='Orçamento Mensal da Faculdade'!H$31,IF('Orçamento Mensal da Faculdade'!$C$28:$O$28<0,'Orçamento Mensal da Faculdade'!$C$28:$O$28,NA()),NA())","v":{"$error":"#N/A"}},{"$f":"IF(SelectedPeriod='Orçamento Mensal da Faculdade'!I$31,IF('Orçamento Mensal da Faculdade'!$C$28:$O$28<0,'Orçamento Mensal da Faculdade'!$C$28:$O$28,NA()),NA())","v":{"$error":"#N/A"}},{"$f":"IF(SelectedPeriod='Orçamento Mensal da Faculdade'!J$31,IF('Orçamento Mensal da Faculdade'!$C$28:$O$28<0,'Orçamento Mensal da Faculdade'!$C$28:$O$28,NA()),NA())","v":{"$error":"#N/A"}},{"$f":"IF(SelectedPeriod='Orçamento Mensal da Faculdade'!K$31,IF('Orçamento Mensal da Faculdade'!$C$28:$O$28<0,'Orçamento Mensal da Faculdade'!$C$28:$O$28,NA()),NA())","v":{"$error":"#N/A"}},{"$f":"IF(SelectedPeriod='Orçamento Mensal da Faculdade'!L$31,IF('Orçamento Mensal da Faculdade'!$C$28:$O$28<0,'Orçamento Mensal da Faculdade'!$C$28:$O$28,NA()),NA())","v":{"$error":"#N/A"}},{"$f":"IF(SelectedPeriod='Orçamento Mensal da Faculdade'!M$31,IF('Orçamento Mensal da Faculdade'!$C$28:$O$28<0,'Orçamento Mensal da Faculdade'!$C$28:$O$28,NA()),NA())","v":{"$error":"#N/A"}},{"$f":"IF(SelectedPeriod='Orçamento Mensal da Faculdade'!N$31,IF('Orçamento Mensal da Faculdade'!$C$28:$O$28<0,'Orçamento Mensal da Faculdade'!$C$28:$O$28,NA()),NA())","v":{"$error":"#N/A"}},{"$f":"IF(SelectedPeriod='Orçamento Mensal da Faculdade'!O$31,IF('Orçamento Mensal da Faculdade'!$C$28:$O$28<0,'Orçamento Mensal da Faculdade'!$C$28:$O$28,NA()),NA())","v":{"$error":"#N/A"}}]
[]
[]
[null,null,"DADOS DO GRÁFICO DE RECEITA"]
[null,null,"Assistência financeira (concessões, bolsas de estudo, empréstimos) recebida",{"$f":"'Orçamento Mensal da Faculdade'!P32","v":{"v":0,"d":"0.0%"}}]
[null,null,"Salários após impostos de um emprego",{"$f":"'Orçamento Mensal da Faculdade'!P33","v":{"v":0.3673469387755102,"d":"36.7%"}}]
[null,null,"Ajuda financeira da família",{"$f":"'Orçamento Mensal da Faculdade'!P34","v":{"v":0.16326530612244897,"d":"16.3%"}}]
[null,null,"Retiradas da poupança",{"$f":"'Orçamento Mensal da Faculdade'!P35","v":{"v":0.40816326530612246,"d":"40.8%"}}]
[null,null,"Outros (pensão para filhos, assistência pública, presentes, etc.)",{"$f":"'Orçamento Mensal da Faculdade'!P36","v":{"v":0.061224489795918366,"d":"6.1%"}}]